[Event "Titled Tuesday Blitz August 1 Late 2023"]
[White "Silva Lucena, Cristian"]
[Black "Manukyan, Sargis V."]
[WhiteFideId "2232588"]
[BlackFideId "13303465"]
[WhiteElo "2401"]
[BlackElo "2592"]
[Result "0-1"]
[Round "4"]
[TimeControl "180+1"]
[Date "2023.08.01"]
[WhiteClock "0:00:10"]
[BlackClock "0:00:06"]
[Board "101"]

1. e4 {[%clk 0:02:54]}  e6 {[%clk 0:02:59]} 2. d4 {[%clk 0:02:54]}  d5 {[%clk 0:03:00]} 3. e5 {[%clk 0:02:54]}  c5 {[%clk 0:03:00]} 4. c3 {[%clk 0:02:55]}  Nc6 {[%clk 0:03:00]} 5. Nf3 {[%clk 0:02:56]}  Nh6 {[%clk 0:03:00]} 6. a3 {[%clk 0:02:55]}  Nf5 {[%clk 0:03:00]} 7. b4 {[%clk 0:02:55]}  cxd4 {[%clk 0:03:01]} 8. cxd4 {[%clk 0:02:56]}  Bd7 {[%clk 0:03:01]} 9. Bb2 {[%clk 0:02:55]}  b5 {[%clk 0:03:01]} 10. Bxb5 {[%clk 0:02:53]}  Nxe5 {[%clk 0:03:01]} 11. Bxd7+ {[%clk 0:02:54]}  Nxd7 {[%clk 0:03:01]} 12. O-O {[%clk 0:02:55]}  Nb6 {[%clk 0:03:00]} 13. Nbd2 {[%clk 0:02:55]}  Rc8 {[%clk 0:02:58]} 14. Rc1 {[%clk 0:02:55]}  Be7 {[%clk 0:02:58]} 15. Ne5 {[%clk 0:02:51]}  O-O {[%clk 0:02:57]} 16. Nb3 {[%clk 0:02:49]}  Nc4 {[%clk 0:02:54]} 17. Nxc4 {[%clk 0:02:46]}  Rxc4 {[%clk 0:02:53]} 18. Na5 {[%clk 0:02:39]}  Rxc1 {[%clk 0:02:47]} 19. Qxc1 {[%clk 0:02:40]}  Bf6 {[%clk 0:02:42]} 20. Rd1 {[%clk 0:02:36]}  Qb6 {[%clk 0:02:39]} 21. Nb3 {[%clk 0:02:35]}  h5 {[%clk 0:02:34]} 22. Nc5 {[%clk 0:02:35]}  Qd6 {[%clk 0:02:23]} 23. Qd2 {[%clk 0:02:29]}  h4 {[%clk 0:02:20]} 24. h3 {[%clk 0:02:28]}  g6 {[%clk 0:02:17]} 25. a4 {[%clk 0:02:24]}  Rc8 {[%clk 0:02:12]} 26. Qe2 {[%clk 0:02:11]}  Bg7 {[%clk 0:02:00]} 27. Qd2 {[%clk 0:02:06]}  Bh6 {[%clk 0:01:48]} 28. Qd3 {[%clk 0:02:04]}  Bf8 {[%clk 0:01:47]} 29. a5 {[%clk 0:01:57]}  Qf4 {[%clk 0:01:42]} 30. Bc1 {[%clk 0:01:50]}  Qb8 {[%clk 0:01:41]} 31. Qa3 {[%clk 0:01:39]}  Bg7 {[%clk 0:01:36]} 32. Be3 {[%clk 0:01:39]}  Nxe3 {[%clk 0:01:33]} 33. fxe3 {[%clk 0:01:40]}  Qg3 {[%clk 0:01:28]} 34. Qd3 {[%clk 0:01:31]}  e5 {[%clk 0:01:06]} 35. Qd2 {[%clk 0:01:12]}  Bh6 {[%clk 0:01:00]} 36. Qd3 {[%clk 0:00:44]}  Bxe3+ {[%clk 0:00:57]} 37. Kh1 {[%clk 0:00:45]}  exd4 {[%clk 0:00:39]} 38. Rf1 {[%clk 0:00:40]}  Rb8 {[%clk 0:00:37]} 39. b5 {[%clk 0:00:39]}  Qd6 {[%clk 0:00:32]} 40. Na6 {[%clk 0:00:34]}  Rc8 {[%clk 0:00:30]} 41. Qb3 {[%clk 0:00:32]}  Rc3 {[%clk 0:00:26]} 42. Qa2 {[%clk 0:00:32]}  d3 {[%clk 0:00:24]} 43. b6 {[%clk 0:00:30]}  axb6 {[%clk 0:00:23]} 44. axb6 {[%clk 0:00:30]}  Bxb6 {[%clk 0:00:22]} 45. Qa4 {[%clk 0:00:24]}  Rc8 {[%clk 0:00:15]} 46. Qg4 {[%clk 0:00:20]}  Rf8 {[%clk 0:00:14]} 47. Nb4 {[%clk 0:00:20]}  d2 {[%clk 0:00:13]} 48. Nd3 {[%clk 0:00:20]}  Be3 {[%clk 0:00:13]} 49. Qf3 {[%clk 0:00:20]}  Qe6 {[%clk 0:00:12]} 50. Nb4 {[%clk 0:00:19]}  d4 {[%clk 0:00:12]} 51. Nd5 {[%clk 0:00:19]}  Kg7 {[%clk 0:00:12]} 52. Nc7 {[%clk 0:00:18]}  Qe5 {[%clk 0:00:11]} 53. Nd5 {[%clk 0:00:18]}  f5 {[%clk 0:00:10]} 54. Nb4 {[%clk 0:00:16]}  Qe4 {[%clk 0:00:10]} 55. Qe2 {[%clk 0:00:16]}  Rc8 {[%clk 0:00:09]} 56. Nd3 {[%clk 0:00:16]}  Rc3 {[%clk 0:00:08]} 57. Nf2 {[%clk 0:00:15]}  Bxf2 {[%clk 0:00:07]} 58. Qxf2 {[%clk 0:00:16]}  Rc1 {[%clk 0:00:07]} 59. Kh2 {[%clk 0:00:14]}  Rxf1 {[%clk 0:00:06]} 60. Qxf1 {[%clk 0:00:14]}  Qe1 {[%clk 0:00:06]} 61. Qc4 {[%clk 0:00:14]}  Qg3+ {[%clk 0:00:06]} 62. Kg1 {[%clk 0:00:10]}  d1=Q+ {[%clk 0:00:06]} 0-1


[Site "https://www.chess.com"]

[Event "Titled Tuesday Blitz August 1 Late 2023"]
[White "ElenGajger"]
[Black "Pesotskiy, Mikhail"]
[BlackFideId "34164453"]
[WhiteElo "2563"]
[BlackElo "2387"]
[Result "0-1"]
[Round "4"]
[TimeControl "180+1"]
[Date "2023.08.01"]
[WhiteClock "0:00:06"]
[BlackClock "0:01:05"]
[Board "102"]

1. e4 {[%clk 0:02:19]}  e6 {[%clk 0:02:57]} 2. d4 {[%clk 0:02:13]}  d5 {[%clk 0:02:58]} 3. Nc3 {[%clk 0:02:10]}  Bb4 {[%clk 0:02:57]} 4. e5 {[%clk 0:02:10]}  c5 {[%clk 0:02:58]} 5. a3 {[%clk 0:02:10]}  Ba5 {[%clk 0:02:58]} 6. dxc5 {[%clk 0:02:10]}  Bxc3+ {[%clk 0:02:57]} 7. bxc3 {[%clk 0:02:10]}  Ne7 {[%clk 0:02:57]} 8. f4 {[%clk 0:02:10]}  Nd7 {[%clk 0:02:55]} 9. Be3 {[%clk 0:02:09]}  Qa5 {[%clk 0:02:55]} 10. Qd2 {[%clk 0:02:00]}  Nf5 {[%clk 0:02:51]} 11. Bd4 {[%clk 0:01:56]}  Nxc5 {[%clk 0:02:48]} 12. Nf3 {[%clk 0:01:54]}  O-O {[%clk 0:02:44]} 13. Bd3 {[%clk 0:01:53]}  Nxd3+ {[%clk 0:02:35]} 14. Qxd3 {[%clk 0:01:54]}  Bd7 {[%clk 0:02:33]} 15. Rb1 {[%clk 0:01:51]}  b6 {[%clk 0:01:52]} 16. O-O {[%clk 0:01:48]}  Rac8 {[%clk 0:01:52]} 17. g4 {[%clk 0:01:44]}  Nxd4 {[%clk 0:01:52]} 18. cxd4 {[%clk 0:01:42]}  Rc3 {[%clk 0:01:52]} 19. Qd2 {[%clk 0:01:42]}  Rfc8 {[%clk 0:01:50]} 20. f5 {[%clk 0:01:31]}  Rxa3 {[%clk 0:01:44]} 21. Qf4 {[%clk 0:01:24]}  Qc3 {[%clk 0:01:36]} 22. Rbe1 {[%clk 0:01:12]}  Qxc2 {[%clk 0:01:33]} 23. Ng5 {[%clk 0:01:05]}  Ra2 {[%clk 0:01:26]} 24. Qg3 {[%clk 0:00:53]}  Rc3 {[%clk 0:01:25]} 25. Nf3 {[%clk 0:00:37]}  Bb5 {[%clk 0:01:14]} 26. fxe6 {[%clk 0:00:31]}  fxe6 {[%clk 0:01:15]} 27. Rf2 {[%clk 0:00:11]}  Qxf2+ {[%clk 0:01:13]} 28. Qxf2 {[%clk 0:00:12]}  Rxf2 {[%clk 0:01:14]} 29. Kxf2 {[%clk 0:00:12]}  h6 {[%clk 0:01:11]} 30. Nh4 {[%clk 0:00:11]}  a5 {[%clk 0:01:05]} 31. Ng6 {[%clk 0:00:11]}  Be8 {[%clk 0:01:04]} 32. Ne7+ {[%clk 0:00:10]}  Kf7 {[%clk 0:01:05]} 33. Nxd5 {[%clk 0:00:08]}  exd5 {[%clk 0:01:05]} 34. e6+ {[%clk 0:00:06]}  Ke7 {[%clk 0:01:05]} 0-1


[Site "https://www.chess.com"]

[Event "Titled Tuesday Blitz August 1 Late 2023"]
[White "Eggleston, Thomas A"]
[Black "vishwa_vijeta"]
[WhiteFideId "412139"]
[WhiteElo "2382"]
[BlackElo "2562"]
[Result "0-1"]
[Round "4"]
[TimeControl "180+1"]
[Date "2023.08.01"]
[WhiteClock "0:00:06"]
[BlackClock "0:01:23"]
[Board "103"]

1. e4 {[%clk 0:03:00]}  c5 {[%clk 0:02:59]} 2. Nf3 {[%clk 0:03:00]}  d6 {[%clk 0:02:59]} 3. Bc4 {[%clk 0:03:01]}  Nc6 {[%clk 0:02:57]} 4. O-O {[%clk 0:03:00]}  g6 {[%clk 0:02:56]} 5. Re1 {[%clk 0:02:57]}  Bg7 {[%clk 0:02:56]} 6. c3 {[%clk 0:02:56]}  e6 {[%clk 0:02:56]} 7. d4 {[%clk 0:02:55]}  cxd4 {[%clk 0:02:56]} 8. cxd4 {[%clk 0:02:56]}  Nge7 {[%clk 0:02:57]} 9. Nc3 {[%clk 0:02:53]}  O-O {[%clk 0:02:56]} 10. Bb3 {[%clk 0:02:05]}  d5 {[%clk 0:02:52]} 11. e5 {[%clk 0:02:04]}  h6 {[%clk 0:02:47]} 12. h4 {[%clk 0:01:59]}  Nf5 {[%clk 0:02:45]} 13. g3 {[%clk 0:01:59]}  Bd7 {[%clk 0:02:43]} 14. Bf4 {[%clk 0:01:58]}  Rc8 {[%clk 0:02:42]} 15. Qd2 {[%clk 0:01:44]}  Na5 {[%clk 0:02:37]} 16. Kg2 {[%clk 0:01:35]}  Nc4 {[%clk 0:02:27]} 17. Bxc4 {[%clk 0:01:35]}  dxc4 {[%clk 0:02:26]} 18. Ne4 {[%clk 0:01:23]}  Bc6 {[%clk 0:02:25]} 19. Kh3 {[%clk 0:01:17]}  Bxe4 {[%clk 0:02:08]} 20. Rxe4 {[%clk 0:01:16]}  Qd5 {[%clk 0:02:08]} 21. Rae1 {[%clk 0:01:14]}  h5 {[%clk 0:02:06]} 22. Bg5 {[%clk 0:01:01]}  a5 {[%clk 0:01:38]} 23. Bf6 {[%clk 0:01:01]}  b5 {[%clk 0:01:37]} 24. Bxg7 {[%clk 0:01:00]}  Kxg7 {[%clk 0:01:37]} 25. Rf4 {[%clk 0:00:44]}  b4 {[%clk 0:01:34]} 26. Ree4 {[%clk 0:00:21]}  c3 {[%clk 0:01:33]} 27. bxc3 {[%clk 0:00:20]}  Rxc3 {[%clk 0:01:33]} 28. Ng5 {[%clk 0:00:17]}  Rfc8 {[%clk 0:01:25]} 29. Re3 {[%clk 0:00:06]}  Qh1# {[%clk 0:01:23]} 0-1


[Site "https://www.chess.com"]

[Event "Titled Tuesday Blitz August 1 Late 2023"]
[White "Zhang, Derek"]
[Black "Kanyamarala, Trisha"]
[WhiteFideId "2087871"]
[BlackFideId "45004722"]
[WhiteElo "2524"]
[BlackElo "2372"]
[Result "1-0"]
[Round "4"]
[TimeControl "180+1"]
[Date "2023.08.01"]
[WhiteClock "0:01:51"]
[BlackClock "0:01:51"]
[Board "106"]

1. Nf3 {[%clk 0:03:00]}  d5 {[%clk 0:02:59]} 2. c4 {[%clk 0:03:01]}  d4 {[%clk 0:02:56]} 3. b4 {[%clk 0:03:01]}  c5 {[%clk 0:02:51]} 4. e3 {[%clk 0:03:00]}  Nc6 {[%clk 0:02:48]} 5. b5 {[%clk 0:02:58]}  Nb8 {[%clk 0:02:47]} 6. exd4 {[%clk 0:02:55]}  cxd4 {[%clk 0:02:48]} 7. Bb2 {[%clk 0:02:56]}  Bg4 {[%clk 0:02:42]} 8. h3 {[%clk 0:02:44]}  Bh5 {[%clk 0:02:39]} 9. g4 {[%clk 0:02:43]}  Bg6 {[%clk 0:02:39]} 10. Nxd4 {[%clk 0:02:42]}  e5 {[%clk 0:02:39]} 11. Nb3 {[%clk 0:02:41]}  Nf6 {[%clk 0:02:35]} 12. Bg2 {[%clk 0:02:38]}  Qc7 {[%clk 0:02:33]} 13. O-O {[%clk 0:02:35]}  Be7 {[%clk 0:02:27]} 14. Re1 {[%clk 0:02:27]}  Nbd7 {[%clk 0:02:27]} 15. d4 {[%clk 0:02:20]}  e4 {[%clk 0:02:22]} 16. N1d2 {[%clk 0:02:14]}  O-O {[%clk 0:02:18]} 17. Rc1 {[%clk 0:02:05]}  Bb4 {[%clk 0:02:16]} 18. a3 {[%clk 0:02:05]}  Bxd2 {[%clk 0:02:16]} 19. Nxd2 {[%clk 0:02:05]}  Nb6 {[%clk 0:02:13]} 20. Nxe4 {[%clk 0:02:01]}  Nxe4 {[%clk 0:02:12]} 21. Bxe4 {[%clk 0:02:01]}  Bxe4 {[%clk 0:02:11]} 22. Rxe4 {[%clk 0:02:02]}  Nxc4 {[%clk 0:02:07]} 23. Qc2 {[%clk 0:01:53]}  Rac8 {[%clk 0:02:00]} 24. d5 {[%clk 0:01:53]}  Nxb2 {[%clk 0:01:57]} 25. Qxc7 {[%clk 0:01:52]}  Rxc7 {[%clk 0:01:57]} 26. Rxc7 {[%clk 0:01:53]}  Nd3 {[%clk 0:01:51]} 27. d6 {[%clk 0:01:51]} 1-0


[Site "https://www.chess.com"]

[Event "Titled Tuesday Blitz August 1 Late 2023"]
[White "Chor, Kevin"]
[Black "Bach, Matthias"]
[WhiteFideId "2090740"]
[BlackFideId "4603168"]
[WhiteElo "2514"]
[BlackElo "2367"]
[Result "1-0"]
[Round "4"]
[TimeControl "180+1"]
[Date "2023.08.01"]
[WhiteClock "0:00:06"]
[BlackClock "0:00:03"]
[Board "109"]

1. e4 {[%clk 0:03:00]}  e5 {[%clk 0:02:59]} 2. Nf3 {[%clk 0:03:00]}  Nc6 {[%clk 0:03:00]} 3. Bb5 {[%clk 0:03:01]}  Bc5 {[%clk 0:02:58]} 4. c3 {[%clk 0:03:01]}  f5 {[%clk 0:02:57]} 5. d3 {[%clk 0:02:55]}  fxe4 {[%clk 0:02:56]} 6. dxe4 {[%clk 0:02:54]}  Nf6 {[%clk 0:02:57]} 7. Qe2 {[%clk 0:02:48]}  d6 {[%clk 0:02:53]} 8. a4 {[%clk 0:02:40]}  a6 {[%clk 0:02:49]} 9. Bxc6+ {[%clk 0:02:31]}  bxc6 {[%clk 0:02:48]} 10. Qc4 {[%clk 0:02:32]}  Qe7 {[%clk 0:02:28]} 11. O-O {[%clk 0:02:30]}  Be6 {[%clk 0:02:20]} 12. Qd3 {[%clk 0:02:31]}  O-O {[%clk 0:02:19]} 13. Bg5 {[%clk 0:02:26]}  Qf7 {[%clk 0:02:16]} 14. Nbd2 {[%clk 0:02:22]}  Nh5 {[%clk 0:02:14]} 15. Be3 {[%clk 0:02:17]}  Nf4 {[%clk 0:02:10]} 16. Qc2 {[%clk 0:01:57]}  Qg6 {[%clk 0:02:03]} 17. g3 {[%clk 0:01:54]}  Ne2+ {[%clk 0:01:46]} 18. Kh1 {[%clk 0:01:46]}  Bg4 {[%clk 0:01:45]} 19. Nh4 {[%clk 0:01:29]}  Qh5 {[%clk 0:01:26]} 20. Bxc5 {[%clk 0:01:28]}  dxc5 {[%clk 0:01:22]} 21. f3 {[%clk 0:01:20]}  Be6 {[%clk 0:01:12]} 22. Rf2 {[%clk 0:00:52]}  Nf4 {[%clk 0:01:08]} 23. Nf5 {[%clk 0:00:44]}  Nh3 {[%clk 0:01:02]} 24. Re2 {[%clk 0:00:39]}  g6 {[%clk 0:00:50]} 25. Ne7+ {[%clk 0:00:22]}  Kf7 {[%clk 0:00:49]} 26. Nxc6 {[%clk 0:00:23]}  Kg7 {[%clk 0:00:40]} 27. Rf1 {[%clk 0:00:19]}  Ng5 {[%clk 0:00:38]} 28. Nxe5 {[%clk 0:00:17]}  Bh3 {[%clk 0:00:32]} 29. Rff2 {[%clk 0:00:16]}  Rae8 {[%clk 0:00:31]} 30. f4 {[%clk 0:00:12]}  Ne6 {[%clk 0:00:25]} 31. Ndf3 {[%clk 0:00:12]}  Rxf4 {[%clk 0:00:18]} 32. gxf4 {[%clk 0:00:08]}  Nxf4 {[%clk 0:00:18]} 33. Re1 {[%clk 0:00:06]}  Rxe5 {[%clk 0:00:11]} 34. Nxe5 {[%clk 0:00:07]}  Qxe5 {[%clk 0:00:11]} 35. Qd2 {[%clk 0:00:07]}  g5 {[%clk 0:00:10]} 36. Qe3 {[%clk 0:00:07]}  h5 {[%clk 0:00:10]} 37. Rxf4 {[%clk 0:00:06]}  gxf4 {[%clk 0:00:03]} 38. Qxh3 {[%clk 0:00:06]} 1-0


[Site "https://www.chess.com"]

[Event "Titled Tuesday Blitz August 1 Late 2023"]
[White "Jovic, Stanoje"]
[Black "Slavin, Alexey"]
[WhiteFideId "905020"]
[BlackFideId "24104388"]
[WhiteElo "2497"]
[BlackElo "2357"]
[Result "1-0"]
[Round "4"]
[TimeControl "180+1"]
[Date "2023.08.01"]
[WhiteClock "0:01:12"]
[BlackClock "0:00:18"]
[Board "112"]

1. c4 {[%clk 0:03:00]}  Nc6 {[%clk 0:03:00]} 2. g3 {[%clk 0:03:00]}  Nf6 {[%clk 0:03:00]} 3. Bg2 {[%clk 0:03:00]}  e5 {[%clk 0:03:00]} 4. Nf3 {[%clk 0:02:58]}  Bc5 {[%clk 0:03:00]} 5. O-O {[%clk 0:02:58]}  O-O {[%clk 0:02:59]} 6. Nxe5 {[%clk 0:02:58]}  Nxe5 {[%clk 0:02:53]} 7. d4 {[%clk 0:02:57]}  Bd6 {[%clk 0:02:46]} 8. c5 {[%clk 0:02:56]}  Be7 {[%clk 0:02:45]} 9. dxe5 {[%clk 0:02:56]}  Ng4 {[%clk 0:02:45]} 10. Qd4 {[%clk 0:02:43]}  d6 {[%clk 0:01:34]} 11. cxd6 {[%clk 0:02:42]}  cxd6 {[%clk 0:01:35]} 12. exd6 {[%clk 0:02:42]}  Bxd6 {[%clk 0:01:35]} 13. Rd1 {[%clk 0:02:34]}  Be7 {[%clk 0:01:35]} 14. Qxd8 {[%clk 0:02:32]}  Rxd8 {[%clk 0:01:23]} 15. Rxd8+ {[%clk 0:02:31]}  Bxd8 {[%clk 0:01:23]} 16. Nc3 {[%clk 0:02:31]}  Bb6 {[%clk 0:01:19]} 17. e3 {[%clk 0:02:31]}  Ba5 {[%clk 0:01:14]} 18. Nd5 {[%clk 0:02:24]}  Kf8 {[%clk 0:01:12]} 19. b4 {[%clk 0:02:23]}  Bd8 {[%clk 0:01:11]} 20. Bb2 {[%clk 0:02:21]}  Be6 {[%clk 0:01:11]} 21. Rc1 {[%clk 0:02:11]}  f6 {[%clk 0:01:08]} 22. h3 {[%clk 0:02:01]}  Nh6 {[%clk 0:01:04]} 23. Nc7 {[%clk 0:01:55]}  Bxc7 {[%clk 0:01:04]} 24. Rxc7 {[%clk 0:01:55]}  Bxa2 {[%clk 0:00:57]} 25. Rxb7 {[%clk 0:01:45]}  a5 {[%clk 0:00:34]} 26. b5 {[%clk 0:01:37]}  Rd8 {[%clk 0:00:25]} 27. b6 {[%clk 0:01:25]}  a4 {[%clk 0:00:24]} 28. Rc7 {[%clk 0:01:18]}  Rd2 {[%clk 0:00:22]} 29. Ba3+ {[%clk 0:01:16]}  Ke8 {[%clk 0:00:18]} 30. b7 {[%clk 0:01:12]} 1-0


[Site "https://www.chess.com"]

[Event "Titled Tuesday Blitz August 1 Late 2023"]
[White "Kujawski, Adam"]
[Black "Delorme, Axel"]
[WhiteFideId "1100920"]
[BlackFideId "632023"]
[WhiteElo "2347"]
[BlackElo "2479"]
[Result "1-0"]
[Round "4"]
[TimeControl "180+1"]
[Date "2023.08.01"]
[WhiteClock "0:00:39"]
[BlackClock "0:00:22"]
[Board "118"]

1. e4 {[%clk 0:03:00]}  c5 {[%clk 0:03:00]} 2. Nf3 {[%clk 0:03:00]}  d6 {[%clk 0:03:00]} 3. d4 {[%clk 0:03:00]}  cxd4 {[%clk 0:03:01]} 4. Nxd4 {[%clk 0:03:01]}  Nf6 {[%clk 0:03:01]} 5. Nc3 {[%clk 0:03:01]}  a6 {[%clk 0:03:02]} 6. Bg5 {[%clk 0:03:02]}  Nbd7 {[%clk 0:03:02]} 7. Bc4 {[%clk 0:03:01]}  Qb6 {[%clk 0:03:01]} 8. Qd2 {[%clk 0:03:01]}  e6 {[%clk 0:02:54]} 9. O-O {[%clk 0:02:58]}  Be7 {[%clk 0:02:52]} 10. Bxe6 {[%clk 0:02:40]}  fxe6 {[%clk 0:02:50]} 11. Nxe6 {[%clk 0:02:41]}  Kf7 {[%clk 0:02:40]} 12. Nf4 {[%clk 0:01:44]}  Re8 {[%clk 0:02:19]} 13. Nfd5 {[%clk 0:01:41]}  Qd8 {[%clk 0:02:14]} 14. f4 {[%clk 0:01:32]}  Kg8 {[%clk 0:02:06]} 15. Nxe7+ {[%clk 0:01:25]}  Qxe7 {[%clk 0:02:01]} 16. Nd5 {[%clk 0:01:14]}  Qd8 {[%clk 0:01:49]} 17. e5 {[%clk 0:00:59]}  dxe5 {[%clk 0:01:47]} 18. fxe5 {[%clk 0:00:59]}  Nxe5 {[%clk 0:01:35]} 19. Bxf6 {[%clk 0:00:58]}  gxf6 {[%clk 0:01:25]} 20. Nxf6+ {[%clk 0:00:46]}  Kh8 {[%clk 0:01:22]} 21. Nxe8 {[%clk 0:00:40]}  Qxe8 {[%clk 0:00:22]} 22. Rae1 {[%clk 0:00:39]} 1-0


[Site "https://www.chess.com"]

[Event "Titled Tuesday Blitz August 1 Late 2023"]
[White "Ahn, Hongjin"]
[Black "Grossboss19"]
[WhiteFideId "13201492"]
[WhiteElo "2331"]
[BlackElo "2476"]
[Result "0-1"]
[Round "4"]
[TimeControl "180+1"]
[Date "2023.08.01"]
[WhiteClock "0:00:17"]
[BlackClock "0:00:15"]
[Board "120"]

1. e4 {[%clk 0:02:59]}  e6 {[%clk 0:02:57]} 2. d4 {[%clk 0:02:59]}  d5 {[%clk 0:02:58]} 3. exd5 {[%clk 0:03:00]}  exd5 {[%clk 0:02:57]} 4. Nf3 {[%clk 0:03:00]}  Bd6 {[%clk 0:02:57]} 5. c4 {[%clk 0:03:00]}  dxc4 {[%clk 0:02:56]} 6. Bxc4 {[%clk 0:03:00]}  Nf6 {[%clk 0:02:53]} 7. O-O {[%clk 0:03:00]}  O-O {[%clk 0:02:53]} 8. Nc3 {[%clk 0:03:01]}  c6 {[%clk 0:02:53]} 9. Bg5 {[%clk 0:03:01]}  h6 {[%clk 0:02:52]} 10. Bh4 {[%clk 0:02:59]}  Bf5 {[%clk 0:02:51]} 11. d5 {[%clk 0:02:58]}  c5 {[%clk 0:02:43]} 12. Re1 {[%clk 0:02:48]}  a6 {[%clk 0:02:36]} 13. a4 {[%clk 0:02:46]}  Nbd7 {[%clk 0:02:33]} 14. Qb3 {[%clk 0:02:29]}  Qc7 {[%clk 0:02:28]} 15. h3 {[%clk 0:02:21]}  g5 {[%clk 0:02:18]} 16. Nxg5 {[%clk 0:02:11]}  hxg5 {[%clk 0:02:17]} 17. Bxg5 {[%clk 0:02:12]}  Nh7 {[%clk 0:02:14]} 18. Bd2 {[%clk 0:02:08]}  Ne5 {[%clk 0:02:11]} 19. Be2 {[%clk 0:02:05]}  c4 {[%clk 0:02:05]} 20. Qd1 {[%clk 0:02:02]}  Rae8 {[%clk 0:02:01]} 21. Bh6 {[%clk 0:01:56]}  Nd3 {[%clk 0:01:58]} 22. Bxf8 {[%clk 0:01:47]}  Bh2+ {[%clk 0:01:45]} 23. Kf1 {[%clk 0:01:45]}  Nxe1 {[%clk 0:01:38]} 24. d6 {[%clk 0:01:38]}  Qc6 {[%clk 0:01:34]} 25. Qxe1 {[%clk 0:01:35]}  Nxf8 {[%clk 0:01:21]} 26. Rd1 {[%clk 0:01:28]}  Bd3 {[%clk 0:01:15]} 27. Qd2 {[%clk 0:01:28]}  Qxd6 {[%clk 0:01:07]} 28. Bxd3 {[%clk 0:01:27]}  cxd3 {[%clk 0:01:05]} 29. g3 {[%clk 0:01:13]}  Qc6 {[%clk 0:01:02]} 30. Qg5+ {[%clk 0:01:09]}  Ng6 {[%clk 0:00:57]} 31. Qd5 {[%clk 0:01:01]}  Qf6 {[%clk 0:00:24]} 32. Kg2 {[%clk 0:00:51]}  Rd8 {[%clk 0:00:22]} 33. Ne4 {[%clk 0:00:47]}  Qe7 {[%clk 0:00:21]} 34. Qf5 {[%clk 0:00:43]}  d2 {[%clk 0:00:12]} 35. Kxh2 {[%clk 0:00:39]}  Rd4 {[%clk 0:00:10]} 36. f3 {[%clk 0:00:15]}  Qd8 {[%clk 0:00:06]} 37. Ng5 {[%clk 0:00:11]}  Qe7 {[%clk 0:00:05]} 38. Qc8+ {[%clk 0:00:10]}  Kg7 {[%clk 0:00:03]} 39. Qf5 {[%clk 0:00:10]}  Qf6 {[%clk 0:00:03]} 40. Qxf6+ {[%clk 0:00:10]}  Kxf6 {[%clk 0:00:02]} 41. Ne4+ {[%clk 0:00:11]}  Ke6 {[%clk 0:00:02]} 42. Rxd2 {[%clk 0:00:11]}  Rb4 {[%clk 0:00:01]} 43. Rd6+ {[%clk 0:00:09]}  Ke5 {[%clk 0:00:01]} 44. Rd2 {[%clk 0:00:05]}  f5 {[%clk 0:00:02]} 45. Ng5 {[%clk 0:00:05]}  Kf6 {[%clk 0:00:02]} 46. Nf7 {[%clk 0:00:06]}  Kxf7 {[%clk 0:00:02]} 47. Rd7+ {[%clk 0:00:07]}  Ke6 {[%clk 0:00:02]} 48. Rd2 {[%clk 0:00:05]}  Ne5 {[%clk 0:00:03]} 49. Kg2 {[%clk 0:00:05]}  Nc4 {[%clk 0:00:03]} 50. Rc2 {[%clk 0:00:05]}  Ne3+ {[%clk 0:00:03]} 51. Kf2 {[%clk 0:00:05]}  Nxc2 {[%clk 0:00:04]} 52. Ke2 {[%clk 0:00:06]}  Rxb2 {[%clk 0:00:04]} 53. Kd3 {[%clk 0:00:06]}  Rb3+ {[%clk 0:00:05]} 54. Kxc2 {[%clk 0:00:06]}  Rxf3 {[%clk 0:00:06]} 55. h4 {[%clk 0:00:07]}  Rxg3 {[%clk 0:00:06]} 56. h5 {[%clk 0:00:08]}  Rh3 {[%clk 0:00:07]} 57. h6 {[%clk 0:00:09]}  Rxh6 {[%clk 0:00:07]} 58. a5 {[%clk 0:00:09]}  Rh4 {[%clk 0:00:08]} 59. Kc3 {[%clk 0:00:10]}  Ra4 {[%clk 0:00:08]} 60. Kd3 {[%clk 0:00:10]}  Rxa5 {[%clk 0:00:09]} 61. Ke3 {[%clk 0:00:11]}  Rb5 {[%clk 0:00:10]} 62. Kf3 {[%clk 0:00:12]}  a5 {[%clk 0:00:11]} 63. Kf2 {[%clk 0:00:12]}  a4 {[%clk 0:00:12]} 64. Ke2 {[%clk 0:00:12]}  a3 {[%clk 0:00:12]} 65. Kd2 {[%clk 0:00:13]}  a2 {[%clk 0:00:13]} 66. Kc2 {[%clk 0:00:13]}  a1=Q {[%clk 0:00:13]} 67. Kd3 {[%clk 0:00:14]}  Qa3+ {[%clk 0:00:13]} 68. Kc4 {[%clk 0:00:15]}  Qa4+ {[%clk 0:00:13]} 69. Kd3 {[%clk 0:00:15]}  Rb3+ {[%clk 0:00:13]} 70. Kc2 {[%clk 0:00:16]}  Qa2+ {[%clk 0:00:14]} 71. Kd1 {[%clk 0:00:17]}  Rb1# {[%clk 0:00:15]} 0-1


[Site "https://www.chess.com"]